Cogmind - Beta 16.1 @@@ ROGUE MODE // 2026.04.23 @ 08:18:47 Player: star Result: Destroyed by S-10 Pest with Light Assault Rifle Performance ------------- Evolutions (2) 1000 Regions Visited (4) 800 Robots Destroyed (42) 210 Value Destroyed (1058) 1058 Prototype IDs (1) 20 Alien Tech Used (0) 0 Bonus (0) 0 TOTAL SCORE: 3088 Bonus ------- None Cogmind --------- Core Integrity 0/550 Matter 300/300 Energy 69/100 System Corruption 0% Temperature Cool (11) Movement Walking (120) Location -8/Materials Parts ------- > --- POWER (1) -------- (None) > --- PROPULSION (4) --- Aluminum Leg Aluminum Leg > --- UTILITY (4) ------ (None) > --- WEAPON (2) ------- (None) > --- INVENTORY (5) ---- Heat Sink Small Storage Unit Medium Storage Unit Plasma Cutter Peak State ------------ > --- POWER ------------ Light Nuclear Core > --- PROPULSION ------- Compact Wheel Compact Wheel > --- UTILITY ---------- Improved Heat Sink Medium Storage Unit Hardened Medium Armor Plating Shield Generator > --- WEAPON ----------- Improved Medium Laser Improved Medium Laser > --- INVENTORY -------- Ion Engine Improved Ion Engine Heat Sink Heat Sink Small Storage Unit Spread Laser Particle Cannon Mini Grenade Launcher Plasma Cutter [Rating: 21] Favorites ----------- Power Ion Engine Engine Ion Engine Power Core Light Nuclear Core Propulsion Aluminum Leg Leg Aluminum Leg Wheel Compact Wheel Hover Unit Hover Unit Utility Medium Storage Unit Device Improved Heat Sink Storage Medium Storage Unit Protection Hardened Medium Armor Plating Weapon Spread Laser Energy Gun Spread Laser Energy Cannon Particle Cannon Ballistic Gun Light Assault Rifle Launcher Mini Grenade Launcher Build | -11 -10 -10 -9 -8 ------- Run | Yrd Mat Min Mat Mat Slots Evolved 4 | . . . 2 2 Power . | . . . . . Propulsion 2 | . . . 2 . Utility 2 | . . . . 2 Weapon . | . . . . . Parts Attached 40 | 9 1 1 19 10 Power 5 | 1 . 1 2 1 Engine 4 | 1 . 1 2 . Core 1 | . . . . 1 Reactor . | . . . . . Propulsion 14 | 4 . . 8 2 Treads . | . . . . . Leg 6 | 2 . . 2 2 Wheel 7 | 2 . . 5 . Hover 1 | . . . 1 . Flight . | . . . . . Utility 7 | 1 1 . 2 3 Device 4 | . . . 2 2 Storage 2 | 1 1 . . . Processor . | . . . . . Hackware . | . . . . . Protection 1 | . . . . 1 Artifact . | . . . . . Weapon 14 | 3 . . 7 4 Energy Gun 10 | 1 . . 7 2 Energy Cannon 1 | . . . . 1 Ballistic Gun 2 | 2 . . . . Ballistic Cannon . | . . . . . Launcher 1 | . . . . 1 Special Weapon . | . . . . . Impact Weapon . | . . . . . Slashing Weapon . | . . . . . Piercing Weapon . | . . . . . Special Melee Weapon . | . . . . . Unidentified Prototypes 1 | . . . 1 . Parts Lost 26 | . . . 10 16 Power 4 | . . . 1 3 Propulsion 8 | . . . 5 3 Utility 5 | . . . 1 4 Weapon 9 | . . . 3 6 Highest Loss Streak 14 | . . . 5 14 To Critical Strikes . | . . . . . Average Backups 7 | 1 3 4 8 7 Power . | . 1 1 . 1 Propulsion . | . . . . . Utility 2 | . . 1 2 2 Weapon 3 | . 1 2 4 2 Tool/Special . | . . . . . Unused Backups 6 | . . . 4 2 Power . | . . . . . Propulsion . | . . . . . Utility 3 | . . . 2 1 Weapon 2 | . . . 2 . Tool/Special 1 | . . . . 1 Average Slot Usage (%) 80 | . 85 85 79 67 Engine 11 | . 14 14 11 7 Leg 15 | . 28 28 11 . Wheel 8 | . . . 10 16 Hover 1 | . . . 2 . Device 7 | . . . 10 14 Storage 11 | . 14 14 11 9 Energy Gun 13 | . . . 20 13 Ballistic Gun 9 | . 28 28 1 . Peak Build Rating 21 | 6 7 7 15 21 Average Rating 10 | 4 6 6 12 13 On Entrance 6 | . 6 6 6 13 Avg Prop Armor Cover (%) 5 | 3 . . 6 . Naked Turns . | . . . . . Heaviest Build 34 | 13 18 18 24 34 Greatest Support 64 | 26 20 20 64 48 Greatest Overweight (x) 7 | 4 . . 7 3 Average Overweight (x) . | 1 . . . . Largest Inventory Capacity 10 | 8 10 10 10 10 Average Capacity 9 | 7 9 10 10 9 Most Carried 10 | 2 4 8 10 10 Average Carried 7 | 1 3 4 8 7 Final Capacity 10 | 8 10 10 10 5 Final Carried 10 | 2 4 7 10 4 Class Distribution -------------------- 72% | Mutant 27% | Scavenger-Mutant Dominant Class ---------------- Mutant | -10/Materials Mutant | -10/Mines Mutant | -9/Materials Mutant | -8/Materials Resources | -11 -10 -10 -9 -8 ----------- Run | Yrd Mat Min Mat Mat Matter Collected 724 | 164 . 214 211 135 Remotely . | . . . . . Salvage Created 1301 | . . 165 783 353 Parts 81 | . . 12 52 17 Haulers Intercepted 2 | . . . 2 . Recyclers Shooed . | . . . . . Parts Field Recycled . | . . . . . Retrieved Matter . | . . . . . Parts Self-Destructed . | . . . . . Prevented . | . . . . . Parts Restored . | . . . . . Kills | -11 -10 -10 -9 -8 ------- Run | Yrd Mat Min Mat Mat Combat Hostiles Destroyed 34 | . . 7 19 8 Guns 31 | . . 7 19 5 Cannons 2 | . . . . 2 AOE 1 | . . . . 1 Classes Destroyed 10 | . . 2 6 2 Builder 2 | . . . 2 . Hauler 2 | . . . 2 . Recycler 3 | . . . 3 . Watcher 1 | . . . 1 . Swarmer 15 | . . 5 10 . Grunt 8 | . . 2 3 3 Brawler 1 | . . . 1 . Sentry 7 | . . . 5 2 Specialist 2 | . . . . 2 Heavy 1 | . . . . 1 Best Kill Streak 5 | . . 5 5 4 Combat Bots Only 5 | . . 5 5 4 Max Kills in Single Turn 2 | . . 1 2 1 Gunslinging 1 | . . . 1 . Exploded 1 | . . . . 1 Melee . | . . . . . Uniques/NPCs Destroyed . | . . . . . Combat | -11 -10 -10 -9 -8 -------- Run | Yrd Mat Min Mat Mat Hostile Shots Fired 282 | . 11 35 110 126 Missed 89 | . 5 11 25 48 Hits 193 | . 6 24 85 78 Melee 1 | . . . 1 . Projectile 192 | . 6 24 84 78 Critical Strikes 14 | . . . 4 10 Damage Taken 2806 | . 47 194 987 1578 Core 816 | . 8 49 209 550 Absorbed by Shields 124 | . . . . 124 Core Remaining (%) 74 | 100 . 77 47 . Volleys Fired 118 | . . 18 63 37 Largest 2 | . . 2 2 2 Hottest 133 | . . 40 130 133 Shots Fired 216 | . . 36 122 58 Gun 205 | . . 36 122 47 Cannon 9 | . . . . 9 Launcher 2 | . . . . 2 Special . | . . . . . Kinetic 36 | . . 36 . . Thermal 153 | . . . 97 56 Explosive 2 | . . . . 2 Electromagnetic 25 | . . . 25 . Robot Hit Streak 37 | . . 4 14 37 Robot Miss Streak 8 | . . 2 8 3 Penetration Max . | . . . . . Secondary Targets 9 | . . 3 5 1 Max Gunslinging Chain 1 | . . 1 1 1 Shots Hit Robots 162 | . . 20 102 40 Core Hits 143 | . . 13 103 27 Critical Kills . | . . . . . Critical Parts Destroyed 1 | . . 1 . . Critical Strikes 1 | . . 1 . . Destroy 1 | . . 1 . . Melee Attacks . | . . . . . Impact . | . . . . . Slashing . | . . . . . Piercing . | . . . . . Sneak Attacks . | . . . . . Combat Hostiles . | . . . . . Follow-up Attacks . | . . . . . Damage Inflicted 2497 | . . 227 1369 901 Guns 2161 | . . 227 1306 628 Cannons 142 | . . . . 142 Explosions 194 | . . . 63 131 Melee . | . . . . . Ramming . | . . . . . Kinetic 227 | . . 227 . . Thermal 1933 | . . . 1163 770 Explosive 131 | . . . . 131 Electromagnetic 206 | . . . 206 . Impact . | . . . . . Slashing . | . . . . . Piercing . | . . . . . Highest Corruption 1 | . . . 1 . Average Corruption 1 | . . . 1 . Corruption Purged . | . . . . . Corruption Blocked . | . . . . . Effects 3 | . . . 3 . Heat Flow Errors 1 | . . . 1 . Energy Discharges 1 | . . . 1 . Weapon Failures 1 | . . . 1 . Overload Shots . | . . . . . Overflow Damage . | . . . . . Projectiles . | . . . . . Explosions . | . . . . . Melee . | . . . . . Knockbacks . | . . . . . Impact . | . . . . . Kinetic . | . . . . . Secondary . | . . . . . Self-Inflicted Damage . | . . . . . Shots . | . . . . . Rammed . | . . . . . Targets Rammed 1 | . . 1 . . Kicked 1 | . . 1 . . Crushed . | . . . . . Highest Temperature 238 | . . . 229 238 Average Temperature 56 | . . . 49 70 Received Heat Transfer 604 | . . . 261 343 Siege Activations . | . . . . . Martial Activations . | . . . . . Shielding Activations . | . . . . . Robots Disrupted . | . . . . . Combat Hostiles . | . . . . . Robots Corrupted . | . . . . . Combat Hostiles . | . . . . . Parts Fried . | . . . . . Impact Corruptions . | . . . . . Robots Melted . | . . . . . Combat Hostiles . | . . . . . Parts Melted . | . . . . . Heat Transferred 2905 | . . . 1480 1425 Parts Sabotaged . | . . . . . Parts Stolen . | . . . . . Parts Stripped . | . . . . . Power Chain Reactions 1 | . . . 1 . Alert | -11 -10 -10 -9 -8 ------- Run | Yrd Mat Min Mat Mat Maximum Alert Level . | . . . . . Low Security (%) 100 | 100 100 100 100 100 Level 1 . | . . . . . Level 2 . | . . . . . Level 3 . | . . . . . Level 4 . | . . . . . Level 5 . | . . . . . High Security . | . . . . . Max Security . | . . . . . Peak Influence 189 | . . 90 189 106 Initial 27 | . . . 18 27 Average 48 | . . 21 69 41 Influence Increases 933 | . . 175 521 237 Destroy 0b10 Robot/C 680 | . . 140 380 160 Destroy 0b10 Robot/NC 40 | . . . 40 . Destroy Leader 166 | . . 20 96 50 Successful Hack 2 | . . . 2 . Disable Machine 15 | . . . . 15 Destroy Structure 15 | . . . 3 12 Lose Combat Pursuer 15 | . . 15 . . Influence Decreases 926 | . . 126 503 297 Entered New Map 71 | . . . 31 40 Time Decay 598 | . . 126 372 100 Lost Part 257 | . . . 100 157 Squads Dispatched 6 | . . . 1 5 Investigation . | . . . . . Extermination . | . . . . . Reinforcement 4 | . . . 1 3 Assault . | . . . . . Garrison 2 | . . . . 2 Intercept . | . . . . . Searches Triggered . | . . . . . Construction Impeded . | . . . . . Haulers Reinforced . | . . . . . Active Scanning Responses . | . . . . . Cargo Convoy Interrupts . | . . . . . Stealth | -11 -10 -10 -9 -8 --------- Run | Yrd Mat Min Mat Mat Distress Signals 6 | . . . 6 . Communications Jammed . | . . . . . Distress Signals . | . . . . . Times Spotted 60 | . 4 9 32 15 Peak Tracking Total 9 | . 4 3 9 6 Tactical Retreats 1 | . . 1 . . Traps | -11 -10 -10 -9 -8 ------- Run | Yrd Mat Min Mat Mat Traps Triggered 1 | . . . 1 . Indirectly . | . . . . . Trap Hack Attempts . | . . . . . Triggered . | . . . . . Disarmed . | . . . . . Reprogrammed . | . . . . . Reused . | . . . . . Traps Extracted . | . . . . . Installed . | . . . . . Triggered . | . . . . . Machines | -11 -10 -10 -9 -8 ---------- Run | Yrd Mat Min Mat Mat Machines Disabled 1 | . . . . 1 Max in Single Turn 1 | . . . . 1 Machines Repaired . | . . . . . Machines Dismantled . | . . . . . Machines Sabotaged . | . . . . . Overloaded Fab Kills . | . . . . . Hacking | -11 -10 -10 -9 -8 --------- Run | Yrd Mat Min Mat Mat Machines Accessed 1 | . . . 1 . Terminals . | . . . . . Fabricators . | . . . . . Repair Stations . | . . . . . Recycling Units . | . . . . . Scanalyzers 1 | . . . 1 . Garrison Access . | . . . . . Total Hacks 3 | . . . 3 . Successful 3 | . . . 3 . Failed . | . . . . . Catastrophic . | . . . . . Database Lockouts . | . . . . . Manual . | . . . . . Terminals . | . . . . . Fabricators . | . . . . . Repair Stations . | . . . . . Recycling Units . | . . . . . Scanalyzers 3 | . . . 3 . Garrison Access . | . . . . . Terminal Hacks . | . . . . . Fabricator Hacks . | . . . . . Repair Station Hacks . | . . . . . Recycling Unit Hacks . | . . . . . Scanalyzer 3 | . . . 3 . Retrieve Study 3 | . . . 3 . Garrison Access Hacks . | . . . . . Unauthorized Hacks . | . . . . . Terminals . | . . . . . Fabricators . | . . . . . Repair Stations . | . . . . . Recycling Units . | . . . . . Scanalyzers . | . . . . . Garrison Access . | . . . . . Data Cores Recovered . | . . . . . Used . | . . . . . Hacking Detections 1 | . . . 1 . Full Trace Events . | . . . . . Feedback Events . | . . . . . Feedback Blocked . | . . . . . Robot Schematics Acquired . | . . . . . Robots Built . | . . . . . Authchips . | . . . . . Time . | . . . . . Total Robot Build Rating . | . . . . . Part Schematics Acquired . | . . . . . Parts Built . | . . . . . Authchips . | . . . . . Time . | . . . . . Total Part Build Rating . | . . . . . Part Studies Acquired 3 | . . . 3 . Parts Repaired . | . . . . . Time . | . . . . . Parts Recycled . | . . . . . Recycled Matter . | . . . . . Retrieved Matter . | . . . . . Retrieved Components . | . . . . . Parts Scanalyzed . | . . . . . Part Schematics Acquired . | . . . . . Parts Damaged . | . . . . . Bothacking | -11 -10 -10 -9 -8 ------------ Run | Yrd Mat Min Mat Mat Used RIF Installer . | . . . . . Robots Hacked . | . . . . . Non-combat . | . . . . . Combat . | . . . . . Robot Hacks Applied . | . . . . . Relay Couplers Released . | . . . . . Fabnet Peak Effective % . | . . . . . Robots Rewired . | . . . . . Allies Hacked . | . . . . . Hacks Repelled . | . . . . . Allies | -11 -10 -10 -9 -8 -------- Run | Yrd Mat Min Mat Mat Total Allies . | . . . . . Largest Group . | . . . . . Highest-Rated Group . | . . . . . Highest-Rated Ally . | . . . . . Total Orders . | . . . . . Ally Attacks . | . . . . . Total Damage . | . . . . . Kills . | . . . . . Allies Corrupted . | . . . . . Allies Melted . | . . . . . Intel | -11 -10 -10 -9 -8 ------- Run | Yrd Mat Min Mat Mat Active Infowar (turns) . | . . . . . Robot Analysis Total . | . . . . . Derelict Logs Recovered 1 | . . 1 . . Drone Launches . | . . . . . Drone Recoveries . | . . . . . Exploration | -11 -10 -10 -9 -8 ------------- Run | Yrd Mat Min Mat Mat Turns Passed 2163 | 86 57 581 1212 227 Spaces Moved 1221 | 51 46 428 613 83 Core 41 | 20 . . 10 11 Treads . | . . . . . Legs 730 | 20 46 428 233 3 Wheels 349 | 11 . . 269 69 Hover 101 | . . . 101 . Flight . | . . . . . Fastest Speed 50 | 50 120 120 90 50 Average Speed 134 | 137 120 120 151 95 Slowest Speed 400 | 250 120 120 400 200 Overloaded Moves . | . . . . . Propulsion Burnouts . | . . . . . Robots Hopped . | . . . . . Potential Cave-ins . | . . . . . Cave-ins Triggered . | . . . . . Exploration Rate (%) 29 | 4 11 82 44 8 Regions Visited 4 Branch Regions 1 Pre-discovered Areas . | . . . . . Known Exits Taken . | . . . . . Unknown Exits Taken 4 | 1 1 1 1 . Scrap Searched 1 | . . 1 . . Spaces Dug . | . . . . . Terrain Destroyed 17 | . . . 4 13 Melee . | . . . . . Projectile . | . . . . . AOE 17 | . . . 4 13 Terrain Rammed . | . . . . . Walls Destroyed . | . . . . . Machines Disabled . | . . . . . Actions | -11 -10 -10 -9 -8 --------- Run | Yrd Mat Min Mat Mat Total 1515 | 61 48 463 772 171 Wait 96 | . . 12 51 33 Move 1217 | 50 45 427 612 83 Hop . | . . . . . Pick Up 19 | 1 1 3 14 . Fast Attach 15 | 6 1 . 6 2 Attach 16 | . . . 6 10 Detach 3 | . 1 . . 2 Swap 20 | 4 . 1 11 4 Drop 10 | . . 1 9 . Fire 118 | . . 18 63 37 Melee . | . . . . . Ram . | . . . . . Kick 1 | . . 1 . . Crush . | . . . . . Escape Stasis . | . . . . . Rewire . | . . . . . Trap . | . . . . . Miscellaneous . | . . . . . Route ------- -11/Scrapyard -10/Materials -10/Mines -9/Materials -8/Materials History --------- Turn | Location | Event 27 | -11/Scrapyard | Discovered new exit (range 15) 87 | -11/Scrapyard | Entered Materials 115 | -10/Materials | Discovered new exit (range 15) 144 | -10/Materials | Entered Mines 307 | -10/Mines | Build established: Mutant 670 | -10/Mines | Learned 2 Materials zone layouts 672 | -10/Mines | Discovered new exit (range 14) 725 | -10/Mines | Entered Materials 725 | -9/Materials | Evolved 2 slots: Propulsion x2 1193 | -9/Materials | Lost 5 parts (1p3n1w) 1354 | -9/Materials | Discovered new exit (range 12) 1746 | -9/Materials | Core integrity fell below 50% 1895 | -9/Materials | Build established: Scavenger-Mutant 1937 | -9/Materials | Entered another Materials area 1937 | -8/Materials | Evolved 2 slots: Utility x2 2023 | -8/Materials | Garrison activated, responded to threat 2103 | -8/Materials | Core integrity fell below 50% 2151 | -8/Materials | Core integrity fell below 20% 2164 | -8/Materials | Destroyed by S-10 Pest with Light Assault Rifle Last Messages --------------- 02120_ R-06 Scavenger collects Particle Gun. 02120_ K-01 Serf collects debris. 02120_ Knocked back. 02121_ Critical hit (Burn: +37). 02121_ Y-45 Defender destroyed. 02124_ K-01 Serf collects debris. 02125_ Particle Cannon+ destroyed. 02126_ Imp. Heat Sink destroyed. 02126_ Ion Engine destroyed. 02126_ Knocked back. 02129_ K-01 Serf collects debris. 02152_ Imp. Ion Engine destroyed. 02153_ Imp. Medium Laser destroyed. 02154_ Critical hit (Burn: +37). 02155_ Acquired 2 matter. 02158_ Heat Sink destroyed. 02158_ K-01 Serf collects debris. 02158_ Acquired Aluminum Leg. 02163_ Acquired 7 matter. 02164_ Acquired 66 matter. Map ----- +----------------------------------------------------+ | ?????????????????????????????????????????????????? | | ?????????????????????????????????????????????????? | | ?????????????????????????????????????????????????? | | ?????????????????????????????????????????????????? | | ?????????????????????????????????????????????????? | | ?????????????????????????????????????????????????? | | ?????????????????????????????????????????????????? | | ?????????????????????????????????????????????????? | | ?????????????????????????????????????????????????? | | ??????????????????????????? ??????????????????? | | ???????????????????????#??? #????????????????? | | ??????????????????????? ??? #????????????????? | | ??????????????????????? ?## ##???????????????? | | ??????????????????????? ?# ] #???????????????? | | ??????????????????????? ? #???????????????? | | ??????????????????????? ? s #???????????????? | | ????????????????????????w? #???????????????? | | ???????????????????????? ? #???????????????? | | ???????????????????????? ? ##??????????????? | | ???????????????????????? ? #??????????????? | | ???????????????????????? ? % #???????????????? | | ???????????????????????? # #s # #???????????????? | | ?????????????????########;; k #???????????????? | | ?????????????????# [ #?????????????????? | | ?????????????????# *[= ##????????????????? | | ?????????????????# % %@# # ???????????????? | | ?????????????????# #% % # ???????????????? | | ?????????????????# %% %!%% +????????????????? | | ?????????????????# H # #????????????????? | | ?????????????????# "" # #????????????????? | | ?????????????????# """"g ## "#????????????????? | | ?????????????????# g ## "#????????????????? | | ?????????????????########### ##????????????????? | | ?????????????????# ?????# #?????????????????? | | ?????????????????# "" ###### #?????????????????? | | ?????????????????# "" + % #?????????????????? | | ?????????????????# "T # #?????????????????? | | ?????????????????# "" # #?????????????????? | | ?????????????????# ""?# #### #?????????????????? | | ?????????????????# ?# #??# #?????????????????? | | ?????????????????###??#%#??# ##????????????????? | | ??????????????????#####+#### +????????????????? | | ??????????????????# # ##????????????????? | | ??????????????????# """"" # #?????????????????? | | ??????????????????# """"" [# #######+# #???????? | | ??????????????????# """"" # #???????? | | ??????????????????# + +???????? | | ??????????????????# # #???????? | | ??????????????????# " "" # ##+#####+?????????? | | ??????????????????# "R"" # #?????????????????? | +----------------------------------------------------+ Best States ------------- Heat Dissipation 45 Energy Generation 14 Energy Capacity 265 Matter Stores 300 Matter Capacity 300 Sight Range 16 Terrain Scan Density 10 Armor Coverage 225 Evasion (%) 55 Item Schematics ----------------- None Robot Schematics ------------------ None Fabricated ------------ Nothing Repaired ---------- Nothing Studied --------- Particle Cannon | -9/Materials | Hacked Com. Wheel | -9/Materials | Hacked Spread Laser | -9/Materials | Hacked Alien Tech Used ----------------- None Achievements -------------- None Challenges ------------ None Game ------ Seed ReflexNeutronBeam Manual? 0 Play Time 00:17:51 Cumulative 198.0 hours Start 2026.04.21 @ 17:53:36 End 2026.04.23 @ 08:18:47 Sessions 2 Manual Loads 0 Difficulty Rogue Special Mode None Game No. 329 Rogue 329 Adventurer 0 Explorer 0 Win Type - Total 2 Types 2/0/0/0/0/0/0/0/0/0 Lore% 61 Gallery% 60 Achievement% 46 Wizard Run 0 Options --------- Layout 2 ASCII 0 Keyboard 1 Movement Numpad Keybinds 0 Fullscreen 1 Font 20/SmallcapsGlow Map View 64x51 Zoom Use 0% Tactical HUD 1 Map Filters NONE Filters NONE Steam 1 RUN: 0842ad1d-a176-4f48-b497-0606e876aec0